fUSD/lending_fUSD_20241126
["ID","MTS","AMOUNT","RATE_DAILY","PERIOD"]
[343338077,1732579842962,-1014.1,0.00019756,2]
[343338078,1732579842973,-500.0,0.00019756,2]
[343338079,1732579842983,-150.0,0.00019756,2]
[343338080,1732579842993,-782.84,0.00019756,2]
[343338082,1732579843003,-500.0,0.00019756,2]
[343338084,1732579843014,-500.0,0.00019756,2]
[343338085,1732579843023,-973.89,0.00019756,2]
[343338087,1732579843033,-221.21,0.00019756,2]
[343338088,1732579843042,-500.0,0.00019756,2]
[343338090,1732579843052,-500.0,0.00019756,2]
[343338091,1732579843062,-500.0,0.00019756,2]
[343338092,1732579843072,-1093.23,0.00019756,2]
[343338093,1732579843081,-500.0,0.00019757,2]
[343338094,1732579843091,-500.0,0.00019757,2]
[343338095,1732579843101,-500.0,0.00019757,2]
[343338096,1732579843111,-500.0,0.00019757,2]
[343338097,1732579843121,-570.27,0.00019757,2]
[343338098,1732579843133,-570.27,0.00019757,2]
[343338099,1732579843143,-570.27,0.00019757,2]
[343338100,1732579843152,-570.27,0.00019757,2]
[343338101,1732579843167,-500.0,0.00019757,2]
[343338102,1732579843177,-500.0,0.00019757,2]
[343338103,1732579843187,-500.0,0.00019757,2]
[343338104,1732579843197,-500.0,0.00019757,2]
[343338105,1732579843207,-500.0,0.00019757,2]
[343338106,1732579843216,-500.0,0.00019757,2]
[343338107,1732579843226,-500.0,0.00019757,2]
[343338108,1732579843235,-500.0,0.00019757,2]
[343338109,1732579843247,-500.0,0.00019757,2]
[343338110,1732579843257,-500.0,0.00019757,2]
[343338111,1732579843267,-500.0,0.00019757,2]
[343338112,1732579843276,-500.0,0.00019757,2]
[343338113,1732579843286,-500.0,0.00019757,2]
[343338114,1732579843296,-500.0,0.00019757,2]
[343338115,1732579843306,-500.0,0.00019757,2]
[343338116,1732579843315,-500.0,0.00019757,2]
[343338117,1732579843325,-500.0,0.00019757,2]
[343338118,1732579843334,-500.0,0.00019757,2]
[343338119,1732579843344,-500.0,0.00019757,2]
[343338120,1732579843354,-500.0,0.00019757,2]
[343338121,1732579843364,-500.0,0.00019757,2]
[343338122,1732579843373,-500.0,0.00019757,2]
[343338123,1732579843383,-500.0,0.00019757,2]
[343338124,1732579843391,-500.0,0.00019757,2]
[343338125,1732579843401,-500.0,0.00019757,2]
[343338126,1732579843412,-894.87,0.00019757,2]
[343338127,1732579843423,-894.87,0.00019757,2]
[343338128,1732579843432,-894.87,0.00019757,2]
[343338129,1732579843443,-894.87,0.00019757,2]
[343338130,1732579843453,-1014.1,0.00019757,2]
[343338131,1732579843463,-1014.1,0.00019757,2]
[343338132,1732579843472,-1014.1,0.00019757,2]
[343338133,1732579843483,-1014.1,0.00019757,2]
[343338134,1732579843492,-603.73,0.00019757,2]
[343338135,1732579843501,-500.0,0.00019757,2]
[343338136,1732579843511,-500.0,0.00019757,2]
[343338137,1732579843521,-500.0,0.00019757,2]
[343338138,1732579843530,-467.91373786,0.00019757,2]
[343338139,1732579843540,-500.0,0.00019757,2]
[343338140,1732579843549,-500.0,0.00019757,2]
[343338141,1732579843558,-500.0,0.00019757,2]
[343338142,1732579843569,-500.0,0.00019757,2]
[343338143,1732579843581,-150.0,0.00019763,2]
[343338144,1732579843590,-500.0,0.00019773,2]
[343338145,1732579843666,-500.0,0.00019773,2]
[343338146,1732579843675,-9604.02088908,0.00019779,2]
[343338147,1732579843684,-11476.34940878,0.00019779,2]
[343338148,1732579843693,-10000.0,0.0001978,2]
[343338149,1732579843703,-150.0,0.00019781,2]
[343338150,1732579843712,-10000.0,0.0001979,2]
[343338151,1732579843721,-894.87,0.00019792,2]
[343338152,1732579843731,-1014.1,0.00019792,2]
[343338153,1732579843741,-500.0,0.00019792,2]
[343338154,1732579843750,-150.0,0.00019792,2]
[343338155,1732579843759,-500.0,0.00019796,2]
[343338156,1732579843768,-570.27,0.00019796,2]
[343338157,1732579843778,-500.0,0.00019796,2]
[343338158,1732579843788,-500.0,0.00019796,2]
[343338159,1732579843797,-500.0,0.00019796,2]
[343338160,1732579843807,-500.0,0.00019796,2]
[343338161,1732579843816,-500.0,0.00019796,2]
[343338162,1732579843826,-500.0,0.00019796,2]
[343338163,1732579843835,-1467.16,0.00019799,2]
[343338164,1732579843845,-500.0,0.00019799,2]
[343338165,1732579843854,-500.0,0.00019799,2]
[343338166,1732579843864,-1428.96,0.00019799,2]
[343338167,1732579843874,-917.15,0.00019799,2]
[343338168,1732579843884,-10000.0,0.000198,2]
[343338169,1732579843895,-150.0,0.00019806,2]
[343338170,1732579843905,-271.93,0.00019806,2]
[343338171,1732579843918,-9604.02088908,0.00019819,2]
[343338172,1732579843927,-150.0,0.00019822,2]
[343338173,1732579843936,-150.0,0.00019827,2]
[343338174,1732579843946,-158.58570754,0.00019827,2]
[343338175,1732579843955,-920.48989326,0.0001983,2]
[343338176,1732579843964,-500.0,0.0001984,2]
[343338177,1732579843973,-500.0,0.00019857,2]
[343338178,1732579843983,-570.27,0.00019857,2]
[343338179,1732579843992,-500.0,0.00019857,2]
[343338180,1732579844002,-500.0,0.00019857,2]
[343338181,1732579844011,-500.0,0.00019857,2]
[343338182,1732579844020,-500.0,0.00019857,2]
[343338183,1732579844030,-500.0,0.00019857,2]
[343338184,1732579844039,-894.87,0.00019857,2]
[343338185,1732579844048,-1014.1,0.00019857,2]
[343338186,1732579844058,-500.0,0.00019857,2]
[343338187,1732579844067,-9604.02088908,0.0001986,2]
[343338188,1732579844077,-500.0,0.00019861,2]
[343338189,1732579844087,-500.0,0.00019861,2]
[343338190,1732579844096,-1279.83,0.00019861,2]
[343338191,1732579844105,-500.0,0.00019861,2]
[343338192,1732579844115,-589.94,0.00019861,2]
[343338193,1732579844131,-955.16,0.00019861,2]
[343338194,1732579844141,-500.0,0.00019861,2]
[343338195,1732579844149,-500.0,0.00019861,2]
[343338196,1732579844159,-500.0,0.00019861,2]
[343338197,1732579844171,-279.33,0.00019861,2]
[343338198,1732579844180,-500.0,0.00019861,2]
[343338199,1732579844190,-500.0,0.00019861,2]
[343338200,1732579844199,-500.0,0.00019861,2]
[343338201,1732579844208,-3353.4,0.00019861,2]
[343338202,1732579844218,-627.65,0.00019861,2]
[343338203,1732579844227,-500.0,0.00019861,2]
[343338204,1732579844236,-832.67,0.00019861,2]
[343338205,1732579844245,-500.0,0.00019861,2]
[343338206,1732579844255,-795.68,0.00019861,2]
[343338207,1732579844265,-697.51,0.00019861,2]
[343338208,1732579844274,-643.74,0.00019861,2]
[343338209,1732579844283,-666.99,0.00019861,2]
[343338210,1732579844293,-150.0,0.00019869,2]
[343338211,1732579844303,-500.0,0.00019871,2]
[343338212,1732579844312,-500.0,0.00019871,2]
[343338213,1732579844322,-472.0852872,0.00019872,2]
[343338214,1732579844331,-500.0,0.00019872,2]
[343338215,1732579844340,-500.0,0.00019872,2]
[343338216,1732579844350,-500.0,0.00019872,2]
[343338217,1732579844359,-500.0,0.00019872,2]
[343338218,1732579844369,-500.0,0.00019872,2]
[343338219,1732579844378,-500.0,0.00019872,2]
[343338220,1732579844387,-500.0,0.00019872,2]
[343338221,1732579844396,-500.0,0.00019872,2]
[343338222,1732579844407,-524.66974391,0.00019872,2]
[343338223,1732579844420,-500.0,0.00019872,2]
[343338224,1732579844429,-500.0,0.00019872,2]
[343338225,1732579844439,-500.0,0.00019872,2]
[343338226,1732579844448,-500.0,0.00019872,2]
[343338227,1732579844457,-500.0,0.00019872,2]
[343338228,1732579844466,-500.0,0.00019872,2]
[343338229,1732579844475,-500.0,0.00019872,2]
[343338230,1732579844485,-500.0,0.00019872,2]
[343338231,1732579844494,-500.0,0.00019872,2]
[343338232,1732579844503,-500.0,0.00019872,2]
[343338233,1732579844513,-500.0,0.00019872,2]
[343338234,1732579844522,-500.0,0.00019872,2]
[343338235,1732579844531,-500.0,0.00019872,2]
[343338236,1732579844540,-500.0,0.00019872,2]
[343338237,1732579844549,-500.0,0.00019872,2]
[343338238,1732579844559,-500.0,0.00019872,2]
[343338239,1732579844569,-333.39631147,0.00019872,2]
[343338240,1732579844580,-500.0,0.00019873,2]
[343338241,1732579844590,-150.0,0.00019883,2]
[343338242,1732579844600,-894.87,0.00019897,2]
[343338243,1732579844610,-1014.1,0.00019897,2]
[343338244,1732579844621,-500.0,0.00019897,2]
[343338245,1732579844630,-500.0,0.00019898,2]
[343338246,1732579844640,-570.27,0.00019898,2]
[343338247,1732579844649,-500.0,0.00019898,2]
[343338248,1732579844661,-500.0,0.00019898,2]
[343338249,1732579844673,-500.0,0.00019898,2]
[343338250,1732579844683,-500.0,0.00019898,2]
[343338251,1732579844692,-500.0,0.00019898,2]
[343338252,1732579844701,-500.0,0.00019898,2]
[343338253,1732579844711,-500.0,0.00019898,2]
[343338254,1732579844720,-500.0,0.00019898,2]
[343338255,1732579844729,-1427.62,0.00019898,2]
[343338256,1732579844739,-500.0,0.00019898,2]
[343338257,1732579844749,-1513.51,0.00019898,2]
[343338258,1732579844758,-500.0,0.00019898,2]
[343338259,1732579844767,-500.0,0.00019898,2]
[343338260,1732579844777,-611.82,0.00019898,2]
[343338261,1732579844786,-1212.4,0.00019898,2]
[343338262,1732579844796,-432.7,0.00019898,2]
[343338263,1732579844805,-500.0,0.00019898,2]
[343338264,1732579844815,-500.0,0.00019898,2]
[343338265,1732579844825,-500.0,0.00019898,2]
[343338266,1732579844834,-782.84,0.00019898,2]
[343338267,1732579844844,-500.0,0.00019898,2]
[343338268,1732579844853,-500.0,0.00019898,2]
[343338269,1732579844863,-708.66,0.00019898,2]
[343338270,1732579844872,-500.0,0.00019898,2]
[343338271,1732579844883,-592.35,0.00019898,2]
[343338272,1732579844893,-973.89,0.00019898,2]
[343338273,1732579844902,-500.0,0.00019898,2]
[343338274,1732579844911,-500.0,0.00019898,2]
[343338275,1732579844924,-1127.56,0.00019898,2]
[343338276,1732579844934,-183.98256169,0.00019898,2]
[343338277,1732579844943,-500.0,0.00019899,2]
[343338278,1732579844952,-500.0,0.00019899,2]
[343338279,1732579844962,-500.0,0.00019899,2]
[343338280,1732579844971,-500.0,0.00019899,2]
[343338281,1732579844980,-430.58870862,0.00019899,2]
[343338282,1732579844990,-500.0,0.00019899,2]
[343338283,1732579844999,-500.0,0.00019899,2]
[343338284,1732579845009,-500.0,0.00019899,2]
[343338285,1732579845018,-500.0,0.00019899,2]
[343338286,1732579845028,-447.90167424,0.00019899,2]
[343338287,1732579845037,-500.0,0.00019899,2]
[343338288,1732579845047,-500.0,0.00019899,2]
[343338289,1732579845056,-500.0,0.00019899,2]
[343338290,1732579845066,-500.0,0.00019899,2]
[343338291,1732579845075,-500.0,0.00019899,2]
[343338292,1732579845084,-500.0,0.00019899,2]
[343338293,1732579845093,-500.0,0.00019899,2]
[343338294,1732579845103,-500.0,0.00019899,2]
[343338295,1732579845112,-500.0,0.00019899,2]
[343338296,1732579845122,-500.0,0.00019899,2]
[343338297,1732579845132,-150.0,0.00019899,2]
[343338298,1732579845142,-1359.73449527,0.000199,2]
[343338299,1732579845152,-158.58570754,0.000199,2]
[343338300,1732579845161,-9604.02088908,0.000199,2]
[343338301,1732579845173,-936.0,0.000199,2]
[343338303,1732579845183,-150.0,0.00019902,2]
[343338304,1732579845192,-300.0,0.00019911,2]
[343338305,1732579845201,-150.0,0.00019915,2]
[343338306,1732579845211,-150.0,0.00019925,2]
[343338307,1732579845220,-3000.0,0.0001993,2]
[343338308,1732579845229,-150.0,0.00019931,2]
[343338309,1732579845238,-150.0,0.00019945,2]
[343338310,1732579845247,-150.0,0.00019947,2]
[343338312,1732579845255,-150.0,0.00019955,2]
[343338314,1732579845264,-150.0,0.00019968,2]
[343338316,1732579845274,-264.07714481,0.00019973,2]
[343338318,1732579845283,-150.0,0.00019977,2]
[343338320,1732579845292,-200.0,0.00019978,2]
[343338322,1732579845301,-150.0,0.00019978,2]
[343338324,1732579845310,-6101.01116875,0.00019982,2]
[343338326,1732579845320,-200.0,0.00019983,2]
[343338328,1732579845329,-815.56,0.00019989,2]
[343338329,1732579845339,-894.87,0.00019992,2]
[343338330,1732579845348,-1014.1,0.00019992,2]
[343338331,1732579845357,-500.0,0.00019992,2]
[343338332,1732579845367,-500.0,0.00019992,2]
[343338333,1732579845376,-500.0,0.00019992,2]
[343338334,1732579845386,-500.0,0.00019992,2]
[343338335,1732579845395,-1093.23,0.00019992,2]
[343338336,1732579845404,-500.0,0.00019993,2]
[343338337,1732579845413,-500.0,0.00019993,2]
[343338338,1732579845428,-500.0,0.00019993,2]
[343338339,1732579845437,-504.58454692,0.00019993,2]
[343338340,1732579845446,-500.0,0.00019993,2]
[343338341,1732579845455,-500.0,0.00019993,2]
[343338342,1732579845464,-500.0,0.00019993,2]
[343338343,1732579845473,-500.0,0.00019993,2]
[343338344,1732579845482,-500.0,0.00019993,2]
[343338345,1732579845491,-500.0,0.00019993,2]
[343338346,1732579845500,-324.0874429,0.00019993,2]
[343338347,1732579845508,-500.0,0.00019993,2]
[343338348,1732579845518,-500.0,0.00019993,2]
[343338349,1732579845526,-500.0,0.00019993,2]
[343338350,1732579845535,-500.0,0.00019993,2]
[343338351,1732579845545,-500.0,0.00019993,2]
[343338352,1732579845554,-570.27,0.00019993,2]
[343338353,1732579845563,-500.0,0.00019993,2]
[343338354,1732579845577,-500.0,0.00019993,2]
[343338355,1732579845586,-500.0,0.00019993,2]
[343338356,1732579845595,-500.0,0.00019993,2]
[343338357,1732579845604,-500.0,0.00019993,2]
[343338358,1732579845614,-894.87,0.00019993,2]
[343338359,1732579845624,-1014.1,0.00019993,2]
[343338360,1732579845634,-500.0,0.00019993,2]
[343338361,1732579845643,-1467.16,0.00019993,2]
[343338362,1732579845654,-500.0,0.00019993,2]
[343338363,1732579845669,-500.0,0.00019993,2]
[343338364,1732579845678,-1428.96,0.00019993,2]
[343338365,1732579845687,-917.15,0.00019993,2]
[343338366,1732579845697,-500.0,0.00019994,2]
[343338367,1732579845706,-500.0,0.00019994,2]
[343338368,1732579845715,-500.0,0.00019994,2]
[343338369,1732579845725,-500.0,0.00019994,2]
[343338370,1732579845734,-500.0,0.00019994,2]
[343338371,1732579845743,-269.9041881,0.00019994,2]
[343338372,1732579845752,-500.0,0.00019994,2]
[343338373,1732579845761,-500.0,0.00019994,2]
[343338374,1732579845770,-500.0,0.00019994,2]
[343338375,1732579845780,-568.76618614,0.00019994,2]
[343338376,1732579845789,-570.27,0.00019994,2]
[343338377,1732579845798,-570.27,0.00019994,2]
[343338378,1732579845807,-500.0,0.00019994,2]
[343338379,1732579845817,-500.0,0.00019994,2]
[343338380,1732579845827,-500.0,0.00019994,2]
[343338381,1732579845836,-500.0,0.00019994,2]
[343338382,1732579845845,-500.0,0.00019994,2]
[343338383,1732579845854,-500.0,0.00019994,2]
[343338384,1732579845864,-500.0,0.00019994,2]
[343338385,1732579845873,-500.0,0.00019994,2]
[343338386,1732579845882,-500.0,0.00019994,2]
[343338387,1732579845891,-500.0,0.00019994,2]
[343338388,1732579845901,-894.87,0.00019994,2]
[343338389,1732579845910,-1014.1,0.00019994,2]
[343338390,1732579845923,-500.0,0.00019994,2]
[343338391,1732579845932,-500.0,0.00019995,2]
[343338392,1732579845941,-405.42585484,0.00019995,2]
[343338393,1732579845951,-500.0,0.00019995,2]
[343338394,1732579845960,-193.42779699,0.00019995,2]
[343338395,1732579845969,-500.0,0.00019995,2]
[343338396,1732579845978,-506.21856613,0.00019995,2]
[343338397,1732579845988,-500.0,0.00019995,2]
[343338398,1732579845997,-248.48345778,0.00019995,2]
[343338399,1732579846006,-500.0,0.00019995,2]
[343338400,1732579846015,-614.69099212,0.00019995,2]
[343338401,1732579846023,-249.87720765,0.00019995,2]
[343338402,1732579846033,-570.27,0.00019995,2]
[343338403,1732579846042,-570.27,0.00019995,2]
[343338404,1732579846051,-500.0,0.00019995,2]
[343338405,1732579846060,-500.0,0.00019995,2]
[343338406,1732579846070,-387.06614668,0.00019995,2]
[343338407,1732579846079,-500.0,0.00019995,2]
[343338408,1732579846088,-500.0,0.00019995,2]
[343338409,1732579846098,-500.0,0.00019995,2]
[343338410,1732579846107,-500.0,0.00019995,2]
[343338411,1732579846116,-894.87,0.00019995,2]
[343338412,1732579846126,-894.87,0.00019995,2]
[343338413,1732579846135,-1014.1,0.00019995,2]
[343338414,1732579846145,-1014.1,0.00019995,2]
[343338415,1732579846154,-414.92372248,0.00019995,2]
[343338416,1732579846163,-500.0,0.00019996,2]
[343338417,1732579846174,-894.87,0.00019996,2]
[343338418,1732579846184,-500.0,0.00019996,2]
[343338419,1732579846193,-1279.83,0.00019996,2]
[343338420,1732579846203,-1014.1,0.00019996,2]
[343338421,1732579846212,-500.0,0.00019996,2]
[343338422,1732579846221,-589.94,0.00019996,2]
[343338423,1732579846230,-955.16,0.00019996,2]
[343338424,1732579846239,-500.0,0.00019996,2]
[343338425,1732579846249,-500.0,0.00019996,2]
[343338426,1732579846258,-500.0,0.00019996,2]
[343338427,1732579846267,-500.0,0.00019996,2]
[343338428,1732579846276,-500.0,0.00019996,2]
[343338429,1732579846285,-500.0,0.00019996,2]
[343338430,1732579846294,-3353.4,0.00019996,2]
[343338431,1732579846303,-627.65,0.00019996,2]
[343338432,1732579846313,-500.0,0.00019996,2]
[343338433,1732579846322,-832.67,0.00019996,2]
[343338434,1732579846331,-500.0,0.00019996,2]
[343338435,1732579846340,-795.68,0.00019996,2]
[343338436,1732579846350,-697.51,0.00019996,2]
[343338437,1732579846359,-643.74,0.00019996,2]
[343338438,1732579846369,-666.99,0.00019996,2]
[343338439,1732579846378,-570.27,0.00019997,2]
[343338440,1732579846387,-550.18,0.00019997,2]
[343338441,1732579846396,-500.0,0.00019997,2]
[343338442,1732579846405,-500.0,0.00019997,2]
[343338443,1732579846416,-500.0,0.00019997,2]
[343338444,1732579846427,-500.0,0.00019997,2]
[343338445,1732579846437,-500.0,0.00019997,2]
[343338446,1732579846446,-894.87,0.00019997,2]
[343338447,1732579846455,-1427.62,0.00019997,2]
[343338448,1732579846464,-500.0,0.00019997,2]
[343338449,1732579846474,-1014.1,0.00019997,2]
[343338450,1732579846483,-1513.51,0.00019997,2]
[343338451,1732579846492,-500.0,0.00019997,2]
[343338452,1732579846501,-500.0,0.00019997,2]
[343338453,1732579846510,-611.82,0.00019997,2]
[343338454,1732579846519,-1212.4,0.00019997,2]
[343338455,1732579846529,-500.0,0.00019997,2]
[343338456,1732579846538,-500.0,0.00019997,2]
[343338457,1732579846547,-500.0,0.00019997,2]
[343338458,1732579846555,-782.84,0.00019997,2]
[343338459,1732579846564,-500.0,0.00019997,2]
[343338460,1732579846574,-516.09488333,0.00019997,2]
[343338461,1732579846587,-708.66,0.00019997,2]
[343338462,1732579846597,-515.18201151,0.00019997,2]
[343338463,1732579846606,-500.0,0.00019997,2]
[343338464,1732579846615,-592.35,0.00019997,2]
[343338465,1732579846624,-973.89,0.00019997,2]
[343338466,1732579846634,-500.0,0.00019997,2]
[343338467,1732579846644,-1127.56,0.00019997,2]
[343338468,1732579846654,-500.0,0.00019997,2]
[343338469,1732579846663,-570.27,0.00019998,2]
[343338470,1732579846675,-570.27,0.00019998,2]
[343338471,1732579846684,-570.27,0.00019998,2]
[343338472,1732579846693,-570.27,0.00019998,2]
[343338473,1732579846703,-570.27,0.00019998,2]
[343338474,1732579846712,-500.0,0.00019998,2]
[343338475,1732579846722,-500.0,0.00019998,2]
[343338476,1732579846730,-500.0,0.00019998,2]
[343338477,1732579846739,-472.72052993,0.00019998,2]
[343338478,1732579846748,-500.0,0.00019998,2]
[343338479,1732579846757,-500.0,0.00019998,2]
[343338480,1732579846766,-500.0,0.00019998,2]
[343338481,1732579846775,-500.0,0.00019998,2]
[343338482,1732579846785,-500.0,0.00019998,2]
[343338483,1732579846794,-500.0,0.00019998,2]
[343338484,1732579846803,-251.69712439,0.00019998,2]
[343338485,1732579846813,-894.87,0.00019998,2]
[343338486,1732579846836,-894.87,0.00019998,2]
[343338487,1732579846847,-894.87,0.00019998,2]
[343338488,1732579846857,-500.0,0.00019998,2]
[343338489,1732579846868,-1427.62,0.00019998,2]
[343338490,1732579846879,-503.0318376,0.00019998,2]
[343338491,1732579846888,-1279.83,0.00019998,2]
[343338492,1732579846898,-1014.1,0.00019998,2]
[343338493,1732579846907,-1014.1,0.00019998,2]
[343338494,1732579846918,-1014.1,0.00019998,2]
[343338495,1732579846928,-1513.51,0.00019998,2]
[343338496,1732579846938,-500.0,0.00019998,2]
[343338497,1732579846948,-353.02267398,0.00019998,2]
[343338498,1732579846957,-589.94,0.00019998,2]
[343338499,1732579846967,-500.0,0.00019998,2]
[343338500,1732579846978,-955.16,0.00019998,2]
[343338501,1732579846988,-611.82,0.00019998,2]
[343338502,1732579846999,-1212.4,0.00019998,2]
[343338503,1732579847008,-500.0,0.00019998,2]
[343338504,1732579847018,-500.0,0.00019998,2]
[343338505,1732579847027,-500.0,0.00019998,2]
[343338506,1732579847037,-500.0,0.00019998,2]
[343338507,1732579847047,-594.80414423,0.00019998,2]
[343338508,1732579847056,-1467.16,0.00019998,2]
[343338509,1732579847066,-1467.16,0.00019998,2]
[343338510,1732579847075,-500.0,0.00019998,2]
[343338511,1732579847084,-500.0,0.00019998,2]
[343338512,1732579847094,-782.84,0.00019998,2]
[343338513,1732579847103,-500.0,0.00019998,2]
[343338514,1732579847113,-500.0,0.00019998,2]
[343338515,1732579847123,-500.0,0.00019998,2]
[343338516,1732579847133,-708.66,0.00019998,2]
[343338517,1732579847143,-3353.4,0.00019998,2]
[343338518,1732579847152,-500.0,0.00019998,2]
[343338519,1732579847162,-500.0,0.00019998,2]
[343338520,1732579847177,-627.65,0.00019998,2]
[343338521,1732579847187,-500.0,0.00019998,2]
[343338522,1732579847197,-500.0,0.00019998,2]
[343338523,1732579847206,-500.0,0.00019998,2]
[343338524,1732579847216,-392.0247869,0.00019998,2]
[343338525,1732579847225,-500.0,0.00019998,2]
[343338526,1732579847235,-500.0,0.00019998,2]
[343338527,1732579847244,-832.67,0.00019998,2]
[343338528,1732579847253,-592.35,0.00019998,2]
[343338529,1732579847263,-500.0,0.00019998,2]
[343338530,1732579847272,-500.0,0.00019998,2]
[343338531,1732579847281,-973.89,0.00019998,2]
[343338532,1732579847290,-500.0,0.00019998,2]
[343338533,1732579847300,-795.68,0.00019998,2]
[343338534,1732579847309,-697.51,0.00019998,2]
[343338535,1732579847319,-500.0,0.00019998,2]
[343338536,1732579847328,-643.74,0.00019998,2]
[343338537,1732579847337,-1127.56,0.00019998,2]
[343338538,1732579847346,-1428.96,0.00019998,2]
[343338539,1732579847355,-1428.96,0.00019998,2]
[343338540,1732579847364,-666.99,0.00019998,2]
[343338541,1732579847373,-318.39513652,0.00019998,2]
[343338542,1732579847383,-917.15,0.00019998,2]
[343338543,1732579847392,-917.15,0.00019998,2]
[343338544,1732579847401,-500.0,0.00019998,2]
[343338545,1732579847410,-500.0,0.00019998,2]
[343338546,1732579847423,-1093.23,0.00019998,2]
[343338547,1732579847433,-1093.23,0.00019998,2]
[343338548,1732579847442,-256.0877651,0.00019999,2]
[343338549,1732579847451,-2177.45782127,0.00019999,2]
[343338550,1732579847462,-1000.0,0.00019999,2]
[343338551,1732579847472,-1000.0,0.00019999,2]
[343338552,1732579847482,-1000.0,0.00019999,2]
[343338553,1732579847491,-802.841,0.00019999,2]
[343338554,1732579847500,-974.77407038,0.00019999,2]
[343338555,1732579847510,-1000.0,0.00019999,2]
[343338557,1732579847520,-570.27,0.00019999,2]
[343338558,1732579847530,-570.27,0.00019999,2]
[343338560,1732579847540,-570.27,0.00019999,2]
[343338561,1732579847549,-570.27,0.00019999,2]
[343338562,1732579847559,-570.27,0.00019999,2]
[343338563,1732579847569,-570.3529707,0.00019999,2]
[343338564,1732579847582,-500.0,0.00019999,2]
[343338565,1732579847591,-500.0,0.00019999,2]
[343338566,1732579847601,-419.45856803,0.00019999,2]
[343338567,1732579847610,-500.0,0.00019999,2]
[343338568,1732579847621,-500.0,0.00019999,2]
[343338569,1732579847631,-500.0,0.00019999,2]
[343338570,1732579847640,-500.0,0.00019999,2]
[343338571,1732579847651,-500.0,0.00019999,2]
[343338572,1732579847660,-500.0,0.00019999,2]
[343338573,1732579847674,-500.0,0.00019999,2]
[343338574,1732579847683,-451.96110838,0.00019999,2]
[343338575,1732579847692,-500.0,0.00019999,2]
[343338576,1732579847701,-500.0,0.00019999,2]
[343338577,1732579847711,-500.0,0.00019999,2]
[343338578,1732579847720,-638.35379538,0.00019999,2]
[343338579,1732579847729,-500.0,0.00019999,2]
[343338580,1732579847738,-500.0,0.00019999,2]
[343338581,1732579847752,-518.18122682,0.00019999,2]
[343338582,1732579847903,-781.01,0.00019999,2]
[343338583,1732579847913,-894.87,0.00019999,2]
[343338584,1732579847926,-894.87,0.00019999,2]
[343338585,1732579847936,-894.87,0.00019999,2]
[343338586,1732579847946,-500.0,0.00019999,2]
[343338587,1732579847956,-894.87,0.00019999,2]
[343338588,1732579847966,-894.87,0.00019999,2]
[343338589,1732579847976,-290.22359888,0.00019999,2]
[343338590,1732579847985,-894.95403941,0.00019999,2]
[343338591,1732579847995,-1427.62,0.00019999,2]
[343338592,1732579848005,-1427.62,0.00019999,2]